[Event "Live Chess"]
[Site "Chess.com"]
[Date "2010.12.15"]
[Round "-"]
[White "Kramer34"]
[Black "hipposcottimus"]
[Result "0-1"]
[CurrentPosition "8/6kp/p5p1/1p1p4/2pP3P/8/PPR5/5K2 w - -"]
[Timezone "UTC"]
[ECO "B01"]
[ECOUrl "https://www.chess.com/openings/Scandinavian-Defense-2.e5"]
[UTCDate "2010.12.15"]
[UTCTime "20:15:12"]
[WhiteElo "1374"]
[BlackElo "1614"]
[TimeControl "60"]
[Termination "hipposcottimus won on time"]
[StartTime "20:15:12"]
[EndDate "2010.12.15"]
[EndTime "20:17:30"]
[Link "https://www.chess.com/game/live/77642947"]

1. e4 {[%clk 0:01:00]} 1... d5 {[%clk 0:01:00]} 2. e5 {[%clk 0:00:53.4]} 2... e6 {[%clk 0:00:54.2]} 3. d4 {[%clk 0:00:53.4]} 3... f6 {[%clk 0:00:53.9]} 4. c3 {[%clk 0:00:53.4]} 4... fxe5 {[%clk 0:00:52.8]} 5. dxe5 {[%clk 0:00:48.1]} 5... c5 {[%clk 0:00:51.6]} 6. Bd3 {[%clk 0:00:47]} 6... Ne7 {[%clk 0:00:50.3]} 7. Ne2 {[%clk 0:00:43.3]} 7... Nbc6 {[%clk 0:00:45.7]} 8. O-O {[%clk 0:00:42.7]} 8... Nxe5 {[%clk 0:00:43.5]} 9. Bc2 {[%clk 0:00:41.6]} 9... N7g6 {[%clk 0:00:41.6]} 10. Nf4 {[%clk 0:00:40]} 10... Qf6 {[%clk 0:00:35.5]} 11. Nxg6 {[%clk 0:00:35.4]} 11... Nxg6 {[%clk 0:00:35.2]} 12. f3 {[%clk 0:00:34.5]} 12... Be7 {[%clk 0:00:34]} 13. Bxg6+ {[%clk 0:00:32.8]} 13... Qxg6 {[%clk 0:00:32.1]} 14. Qe1 {[%clk 0:00:32.8]} 14... O-O {[%clk 0:00:30.5]} 15. Nd2 {[%clk 0:00:29.1]} 15... Bf6 {[%clk 0:00:30]} 16. Nb3 {[%clk 0:00:26.3]} 16... c4 {[%clk 0:00:28]} 17. Nc5 {[%clk 0:00:25.5]} 17... b6 {[%clk 0:00:27.1]} 18. Nxe6 {[%clk 0:00:23.1]} 18... Bxe6 {[%clk 0:00:24.9]} 19. Qxe6+ {[%clk 0:00:23.1]} 19... Kh8 {[%clk 0:00:23.1]} 20. Bf4 {[%clk 0:00:20.5]} 20... Bd4+ {[%clk 0:00:22.1]} 21. cxd4 {[%clk 0:00:18.9]} 21... Qxe6 {[%clk 0:00:21.8]} 22. Be5 {[%clk 0:00:17.6]} 22... Qg6 {[%clk 0:00:18.8]} 23. Rae1 {[%clk 0:00:16.3]} 23... Rf5 {[%clk 0:00:17.7]} 24. g4 {[%clk 0:00:15.5]} 24... Re8 {[%clk 0:00:14.7]} 25. Kh1 {[%clk 0:00:12.2]} 25... Kg8 {[%clk 0:00:13.2]} 26. gxf5 {[%clk 0:00:11.3]} 26... Qxf5 {[%clk 0:00:12.1]} 27. Rg1 {[%clk 0:00:10.4]} 27... Qxf3+ {[%clk 0:00:11.1]} 28. Rg2 {[%clk 0:00:07.2]} 28... Rf8 {[%clk 0:00:10.8]} 29. Rg1 {[%clk 0:00:05.9]} 29... Rf5 {[%clk 0:00:08.3]} 30. Bg3 {[%clk 0:00:04.7]} 30... Rg5 {[%clk 0:00:06]} 31. Bf2 {[%clk 0:00:03.2]} 31... Qxf2 {[%clk 0:00:04.3]} 32. Rxf2 {[%clk 0:00:01.1]} 32... Rxg1+ {[%clk 0:00:03.9]} 33. Kxg1 {[%clk 0:00:00.5]} 33... g6 {[%clk 0:00:02.9]} 34. Kf1 {[%clk 0:00:00.5]} 34... a6 {[%clk 0:00:02.5]} 35. h4 {[%clk 0:00:00.5]} 35... b5 {[%clk 0:00:02.1]} 36. Rc2 {[%clk 0:00:00.3]} 36... Kg7 {[%clk 0:00:00.1]} 0-1

[Event "Live Chess"]
[Site "Chess.com"]
[Date "2010.12.15"]
[Round "-"]
[White "hipposcottimus"]
[Black "elom"]
[Result "1-0"]
[CurrentPosition "r4rk1/5ppp/2n5/p1BR1P2/1b5N/2p3N1/6PP/1R4K1 b - -"]
[Timezone "UTC"]
[ECO "B02"]
[ECOUrl "https://www.chess.com/openings/Alekhines-Defense-Scandinavian-Variation-3.exd5"]
[UTCDate "2010.12.15"]
[UTCTime "20:12:55"]
[WhiteElo "1614"]
[BlackElo "1503"]
[TimeControl "60"]
[Termination "hipposcottimus won on time"]
[StartTime "20:12:55"]
[EndDate "2010.12.15"]
[EndTime "20:14:54"]
[Link "https://www.chess.com/game/live/77642348"]

1. e4 {[%clk 0:01:00]} 1... d5 {[%clk 0:01:00]} 2. exd5 {[%clk 0:00:58.5]} 2... Nf6 {[%clk 0:00:59.3]} 3. Nc3 {[%clk 0:00:58.2]} 3... c6 {[%clk 0:00:57.7]} 4. Bc4 {[%clk 0:00:57.5]} 4... cxd5 {[%clk 0:00:55.5]} 5. Bb5+ {[%clk 0:00:57.2]} 5... Bd7 {[%clk 0:00:53.5]} 6. d3 {[%clk 0:00:56.4]} 6... Bxb5 {[%clk 0:00:52.4]} 7. Nxb5 {[%clk 0:00:56.2]} 7... a6 {[%clk 0:00:51.7]} 8. Nc3 {[%clk 0:00:55.4]} 8... e6 {[%clk 0:00:49]} 9. f4 {[%clk 0:00:54.5]} 9... Bb4 {[%clk 0:00:48.4]} 10. Nf3 {[%clk 0:00:53.5]} 10... O-O {[%clk 0:00:47.3]} 11. O-O {[%clk 0:00:51.1]} 11... b5 {[%clk 0:00:45.4]} 12. a3 {[%clk 0:00:47.5]} 12... Bd6 {[%clk 0:00:43]} 13. Ne2 {[%clk 0:00:45.8]} 13... Nc6 {[%clk 0:00:40.6]} 14. c4 {[%clk 0:00:45.1]} 14... dxc4 {[%clk 0:00:38.1]} 15. dxc4 {[%clk 0:00:43.7]} 15... bxc4 {[%clk 0:00:35.1]} 16. Nc3 {[%clk 0:00:43.4]} 16... e5 {[%clk 0:00:29.7]} 17. f5 {[%clk 0:00:41.7]} 17... e4 {[%clk 0:00:27.9]} 18. Nh4 {[%clk 0:00:39.9]} 18... Be5 {[%clk 0:00:26.4]} 19. Ne2 {[%clk 0:00:34.5]} 19... Qxd1 {[%clk 0:00:24.4]} 20. Rxd1 {[%clk 0:00:33]} 20... a5 {[%clk 0:00:14]} 21. Bf4 {[%clk 0:00:32.5]} 21... Bxb2 {[%clk 0:00:11.9]} 22. Rab1 {[%clk 0:00:30.3]} 22... Bxa3 {[%clk 0:00:10.9]} 23. Ng3 {[%clk 0:00:26]} 23... Bb4 {[%clk 0:00:10.1]} 24. Bg5 {[%clk 0:00:23]} 24... Nd5 {[%clk 0:00:06.5]} 25. Rxd5 {[%clk 0:00:18.7]} 25... e3 {[%clk 0:00:04]} 26. Bxe3 {[%clk 0:00:13.2]} 26... c3 {[%clk 0:00:02.5]} 27. Bc5 {[%clk 0:00:12.1]} 1-0

[Event "Live Chess"]
[Site "Chess.com"]
[Date "2010.12.15"]
[Round "-"]
[White "hipposcottimus"]
[Black "Angryrook28"]
[Result "1-0"]
[CurrentPosition "1r2q1k1/5pQp/4p3/2p2p2/p7/8/bB3PPP/1R2R1K1 b - -"]
[Timezone "UTC"]
[ECO "A06"]
[ECOUrl "https://www.chess.com/openings/Reti-Opening-Tennison-Gambit"]
[UTCDate "2010.12.15"]
[UTCTime "20:10:43"]
[WhiteElo "1614"]
[BlackElo "1458"]
[TimeControl "60"]
[Termination "hipposcottimus won by checkmate"]
[StartTime "20:10:43"]
[EndDate "2010.12.15"]
[EndTime "20:12:29"]
[Link "https://www.chess.com/game/live/77641706"]

1. e4 {[%clk 0:01:00]} 1... d5 {[%clk 0:01:00]} 2. Nf3 {[%clk 0:00:59.7]} 2... Qd7 {[%clk 0:00:59.2]} 3. exd5 {[%clk 0:00:57.3]} 3... Qxd5 {[%clk 0:00:58]} 4. Nc3 {[%clk 0:00:57.1]} 4... Qd8 {[%clk 0:00:56.4]} 5. d3 {[%clk 0:00:56.7]} 5... e6 {[%clk 0:00:55.5]} 6. Be3 {[%clk 0:00:56.4]} 6... Bb4 {[%clk 0:00:55.1]} 7. Be2 {[%clk 0:00:56.2]} 7... Bxc3+ {[%clk 0:00:54.4]} 8. bxc3 {[%clk 0:00:56]} 8... Ne7 {[%clk 0:00:54]} 9. O-O {[%clk 0:00:55.7]} 9... O-O {[%clk 0:00:53.5]} 10. Re1 {[%clk 0:00:55.4]} 10... c6 {[%clk 0:00:52.9]} 11. d4 {[%clk 0:00:55.1]} 11... Qa5 {[%clk 0:00:52.2]} 12. Bd2 {[%clk 0:00:52.8]} 12... Qb6 {[%clk 0:00:50.7]} 13. c4 {[%clk 0:00:51.4]} 13... Qc7 {[%clk 0:00:50.3]} 14. c5 {[%clk 0:00:50.1]} 14... b6 {[%clk 0:00:49.3]} 15. c3 {[%clk 0:00:48.7]} 15... bxc5 {[%clk 0:00:48.2]} 16. dxc5 {[%clk 0:00:48.4]} 16... a6 {[%clk 0:00:47.5]} 17. Bc1 {[%clk 0:00:48.2]} 17... a5 {[%clk 0:00:47.1]} 18. Ba3 {[%clk 0:00:47.7]} 18... a4 {[%clk 0:00:46.8]} 19. Nd4 {[%clk 0:00:44.4]} 19... Nd7 {[%clk 0:00:46.1]} 20. Bd3 {[%clk 0:00:43.9]} 20... Nxc5 {[%clk 0:00:45]} 21. Bxc5 {[%clk 0:00:42.4]} 21... Re8 {[%clk 0:00:44.3]} 22. Ba3 {[%clk 0:00:41]} 22... c5 {[%clk 0:00:42.4]} 23. Nb5 {[%clk 0:00:36.5]} 23... Qc6 {[%clk 0:00:40.7]} 24. c4 {[%clk 0:00:33.3]} 24... Ba6 {[%clk 0:00:38.4]} 25. Be4 {[%clk 0:00:33]} 25... Qc8 {[%clk 0:00:35.2]} 26. Qg4 {[%clk 0:00:29.4]} 26... g6 {[%clk 0:00:32.1]} 27. Nd6 {[%clk 0:00:23.2]} 27... Qd8 {[%clk 0:00:29.4]} 28. Nxe8 {[%clk 0:00:21.9]} 28... Qxe8 {[%clk 0:00:28.8]} 29. Bb2 {[%clk 0:00:19.6]} 29... Rb8 {[%clk 0:00:27.4]} 30. Rab1 {[%clk 0:00:18.8]} 30... Bxc4 {[%clk 0:00:25.3]} 31. Qh4 {[%clk 0:00:17.6]} 31... Bxa2 {[%clk 0:00:22.5]} 32. Qh6 {[%clk 0:00:16.6]} 32... Nf5 {[%clk 0:00:19.6]} 33. Bxf5 {[%clk 0:00:13.7]} 33... gxf5 {[%clk 0:00:19]} 34. Qg7# {[%clk 0:00:12.4]} 1-0

[Event "Live Chess"]
[Site "Chess.com"]
[Date "2010.12.15"]
[Round "-"]
[White "lineandstamper"]
[Black "hipposcottimus"]
[Result "1-0"]
[CurrentPosition "3r2k1/pR4p1/2p3p1/3b2B1/3R4/5P2/PP4PP/6K1 b - -"]
[Timezone "UTC"]
[ECO "C45"]
[ECOUrl "https://www.chess.com/openings/Scotch-Game"]
[UTCDate "2010.12.15"]
[UTCTime "19:04:38"]
[WhiteElo "1666"]
[BlackElo "1609"]
[TimeControl "60"]
[Termination "lineandstamper won on time"]
[StartTime "19:04:38"]
[EndDate "2010.12.15"]
[EndTime "19:06:04"]
[Link "https://www.chess.com/game/live/77623862"]

1. e4 {[%clk 0:01:00]} 1... e5 {[%clk 0:01:00]} 2. Nf3 {[%clk 0:00:59.1]} 2... Nc6 {[%clk 0:00:59.7]} 3. d4 {[%clk 0:00:58.1]} 3... Nf6 {[%clk 0:00:59.4]} 4. dxe5 {[%clk 0:00:57.1]} 4... Nxe4 {[%clk 0:00:58.6]} 5. Nc3 {[%clk 0:00:55.8]} 5... d5 {[%clk 0:00:58.2]} 6. Nxe4 {[%clk 0:00:53.7]} 6... dxe4 {[%clk 0:00:57.1]} 7. Qxd8+ {[%clk 0:00:52.7]} 7... Nxd8 {[%clk 0:00:56.9]} 8. Nd4 {[%clk 0:00:50.5]} 8... Be7 {[%clk 0:00:55.7]} 9. Bc4 {[%clk 0:00:48.7]} 9... f5 {[%clk 0:00:55.3]} 10. exf6 {[%clk 0:00:47.3]} 10... Bxf6 {[%clk 0:00:54.3]} 11. c3 {[%clk 0:00:46.6]} 11... Bxd4 {[%clk 0:00:50.8]} 12. cxd4 {[%clk 0:00:45.5]} 12... Be6 {[%clk 0:00:50.6]} 13. Bb5+ {[%clk 0:00:43.4]} 13... c6 {[%clk 0:00:48.6]} 14. Ba4 {[%clk 0:00:41]} 14... O-O {[%clk 0:00:47.4]} 15. Bc2 {[%clk 0:00:40.2]} 15... Bd5 {[%clk 0:00:46]} 16. O-O {[%clk 0:00:39.1]} 16... Rf6 {[%clk 0:00:43.3]} 17. Re1 {[%clk 0:00:37.9]} 17... Rg6 {[%clk 0:00:42.9]} 18. f3 {[%clk 0:00:36.4]} 18... e3 {[%clk 0:00:39.9]} 19. Bxg6 {[%clk 0:00:35.2]} 19... e2 {[%clk 0:00:38.1]} 20. Rxe2 {[%clk 0:00:34.3]} 20... hxg6 {[%clk 0:00:34.6]} 21. Re8+ {[%clk 0:00:32.9]} 21... Kf7 {[%clk 0:00:33.1]} 22. Re5 {[%clk 0:00:31.6]} 22... Ne6 {[%clk 0:00:31.2]} 23. Bg5 {[%clk 0:00:29.9]} 23... Nxd4 {[%clk 0:00:29.8]} 24. Re7+ {[%clk 0:00:28]} 24... Kg8 {[%clk 0:00:29.5]} 25. Rxb7 {[%clk 0:00:26.8]} 25... Nc2 {[%clk 0:00:27.3]} 26. Rc1 {[%clk 0:00:25.5]} 26... Nd4 {[%clk 0:00:26.9]} 27. Rd1 {[%clk 0:00:24.4]} 27... Rd8 {[%clk 0:00:25.4]} 28. Rxd4 {[%clk 0:00:23]} 1-0

[Event "Live Chess"]
[Site "Chess.com"]
[Date "2010.12.15"]
[Round "-"]
[White "rgp"]
[Black "hipposcottimus"]
[Result "1-0"]
[CurrentPosition "r2q1rk1/2p2ppQ/pp1p1b2/n7/3P4/5b1P/PPB2PP1/RNB1R1K1 b - -"]
[Timezone "UTC"]
[ECO "C65"]
[ECOUrl "https://www.chess.com/openings/Ruy-Lopez-Opening-Berlin-Defense-4.O-O"]
[UTCDate "2010.12.15"]
[UTCTime "19:01:17"]
[WhiteElo "1611"]
[BlackElo "1609"]
[TimeControl "60"]
[Termination "rgp won by checkmate"]
[StartTime "19:01:17"]
[EndDate "2010.12.15"]
[EndTime "19:02:26"]
[Link "https://www.chess.com/game/live/77623100"]

1. e4 {[%clk 0:01:00]} 1... e5 {[%clk 0:01:00]} 2. Nf3 {[%clk 0:00:59.5]} 2... Nc6 {[%clk 0:00:59.7]} 3. Bb5 {[%clk 0:00:59.2]} 3... Nf6 {[%clk 0:00:59.4]} 4. O-O {[%clk 0:00:57.2]} 4... a6 {[%clk 0:00:57.3]} 5. Ba4 {[%clk 0:00:56.1]} 5... Be7 {[%clk 0:00:56.1]} 6. Re1 {[%clk 0:00:54.6]} 6... O-O {[%clk 0:00:55.8]} 7. c3 {[%clk 0:00:53.7]} 7... d6 {[%clk 0:00:54.2]} 8. Bc2 {[%clk 0:00:52.4]} 8... Bg4 {[%clk 0:00:50.8]} 9. h3 {[%clk 0:00:50.2]} 9... Bh5 {[%clk 0:00:49.6]} 10. d4 {[%clk 0:00:49]} 10... exd4 {[%clk 0:00:45.8]} 11. cxd4 {[%clk 0:00:48.1]} 11... Na5 {[%clk 0:00:42]} 12. Qd3 {[%clk 0:00:42.9]} 12... b6 {[%clk 0:00:38]} 13. e5 {[%clk 0:00:41]} 13... Bxf3 {[%clk 0:00:32.4]} 14. exf6 {[%clk 0:00:38.4]} 14... Bxf6 {[%clk 0:00:22.2]} 15. Qxh7# {[%clk 0:00:36.7]} 1-0

[Event "Live Chess"]
[Site "Chess.com"]
[Date "2010.12.15"]
[Round "-"]
[White "JetDash"]
[Black "hipposcottimus"]
[Result "0-1"]
[CurrentPosition "r2q1rk1/pp3ppp/2pb4/3p3n/P2P1P2/1PN1PpnP/2P2R2/R1B1QKN1 w - -"]
[Timezone "UTC"]
[ECO "D00"]
[ECOUrl "https://www.chess.com/openings/Queens-Pawn-Opening-1...d5-2.e3"]
[UTCDate "2010.12.15"]
[UTCTime "07:42:51"]
[WhiteElo "1727"]
[BlackElo "1626"]
[TimeControl "60"]
[Termination "hipposcottimus won by checkmate"]
[StartTime "07:42:51"]
[EndDate "2010.12.15"]
[EndTime "07:44:11"]
[Link "https://www.chess.com/game/live/77468309"]

1. d4 {[%clk 0:01:00]} 1... d5 {[%clk 0:01:00]} 2. e3 {[%clk 0:01:00]} 2... c6 {[%clk 0:00:59.7]} 3. Nc3 {[%clk 0:01:00]} 3... e6 {[%clk 0:00:59.4]} 4. a3 {[%clk 0:00:59.6]} 4... Nd7 {[%clk 0:00:57.7]} 5. g3 {[%clk 0:00:59.6]} 5... Ngf6 {[%clk 0:00:57.5]} 6. Bg2 {[%clk 0:00:59.6]} 6... Bd6 {[%clk 0:00:57.2]} 7. Nge2 {[%clk 0:00:59.6]} 7... e5 {[%clk 0:00:56.6]} 8. O-O {[%clk 0:00:59.6]} 8... e4 {[%clk 0:00:55.4]} 9. f4 {[%clk 0:00:57.5]} 9... O-O {[%clk 0:00:53.1]} 10. b3 {[%clk 0:00:55]} 10... Ng4 {[%clk 0:00:45.3]} 11. a4 {[%clk 0:00:55]} 11... Ndf6 {[%clk 0:00:38.6]} 12. h3 {[%clk 0:00:53.8]} 12... Nh6 {[%clk 0:00:36.6]} 13. Rf2 {[%clk 0:00:48.6]} 13... Nh5 {[%clk 0:00:35.3]} 14. g4 {[%clk 0:00:46.4]} 14... Bxg4 {[%clk 0:00:26.8]} 15. Qe1 {[%clk 0:00:43.7]} 15... Bf3 {[%clk 0:00:21.7]} 16. Bxf3 {[%clk 0:00:41.8]} 16... exf3 {[%clk 0:00:20.7]} 17. Kf1 {[%clk 0:00:33.5]} 17... Nf5 {[%clk 0:00:19.2]} 18. Ng1 {[%clk 0:00:31.7]} 18... Nfg3# {[%clk 0:00:17.8]} 0-1

[Event "Live Chess"]
[Site "Chess.com"]
[Date "2010.12.15"]
[Round "-"]
[White "hipposcottimus"]
[Black "jepone"]
[Result "1-0"]
[CurrentPosition "8/8/1k6/p7/5pNP/8/5PP1/6K1 b - -"]
[Timezone "UTC"]
[ECO "B30"]
[ECOUrl "https://www.chess.com/openings/Sicilian-Defense-Nyezhmetdinov-Rossolimo-Attack-3...e6-4.Bxc6-bxc6"]
[UTCDate "2010.12.15"]
[UTCTime "07:20:12"]
[WhiteElo "1626"]
[BlackElo "1482"]
[TimeControl "60"]
[Termination "hipposcottimus won on time"]
[StartTime "07:20:12"]
[EndDate "2010.12.15"]
[EndTime "07:22:09"]
[Link "https://www.chess.com/game/live/77464140"]

1. e4 {[%clk 0:01:00]} 1... c5 {[%clk 0:01:00]} 2. Nf3 {[%clk 0:00:59.7]} 2... Nc6 {[%clk 0:00:59.7]} 3. Bb5 {[%clk 0:00:59]} 3... e6 {[%clk 0:00:59.4]} 4. Bxc6 {[%clk 0:00:58.5]} 4... bxc6 {[%clk 0:00:58]} 5. c4 {[%clk 0:00:58.3]} 5... Bb7 {[%clk 0:00:56.9]} 6. Nc3 {[%clk 0:00:58]} 6... d5 {[%clk 0:00:55.6]} 7. d3 {[%clk 0:00:57.2]} 7... dxe4 {[%clk 0:00:51.9]} 8. dxe4 {[%clk 0:00:55.1]} 8... Qxd1+ {[%clk 0:00:50.4]} 9. Kxd1 {[%clk 0:00:54.9]} 9... O-O-O+ {[%clk 0:00:48.9]} 10. Ke2 {[%clk 0:00:54.6]} 10... Bd6 {[%clk 0:00:46.6]} 11. Re1 {[%clk 0:00:54.3]} 11... Nf6 {[%clk 0:00:44.3]} 12. Kf1 {[%clk 0:00:53.9]} 12... h6 {[%clk 0:00:41.8]} 13. e5 {[%clk 0:00:52.4]} 13... Ng4 {[%clk 0:00:33.8]} 14. exd6 {[%clk 0:00:49.8]} 14... Rxd6 {[%clk 0:00:32.9]} 15. h3 {[%clk 0:00:47.3]} 15... Nf6 {[%clk 0:00:31.1]} 16. Ne5 {[%clk 0:00:46.2]} 16... g5 {[%clk 0:00:30]} 17. Nxf7 {[%clk 0:00:45.4]} 17... Rdd8 {[%clk 0:00:26.8]} 18. Nxd8 {[%clk 0:00:42.7]} 18... Rxd8 {[%clk 0:00:26.4]} 19. Na4 {[%clk 0:00:40.8]} 19... Rd4 {[%clk 0:00:20.9]} 20. Nxc5 {[%clk 0:00:39.2]} 20... Rxc4 {[%clk 0:00:20.3]} 21. Nxe6 {[%clk 0:00:38.2]} 21... Nd5 {[%clk 0:00:17.3]} 22. Ng7 {[%clk 0:00:36.4]} 22... Nf4 {[%clk 0:00:16.3]} 23. Re8+ {[%clk 0:00:35.1]} 23... Kc7 {[%clk 0:00:14.9]} 24. Bxf4+ {[%clk 0:00:33.8]} 24... gxf4 {[%clk 0:00:13.1]} 25. Rae1 {[%clk 0:00:32.9]} 25... Kb6 {[%clk 0:00:10.7]} 26. R8e7 {[%clk 0:00:32.6]} 26... Ba6 {[%clk 0:00:10]} 27. Kg1 {[%clk 0:00:29.2]} 27... Rc2 {[%clk 0:00:08.6]} 28. R7e6 {[%clk 0:00:28.8]} 28... Rxb2 {[%clk 0:00:07.8]} 29. Nf5 {[%clk 0:00:27.4]} 29... Rxa2 {[%clk 0:00:07]} 30. Rc1 {[%clk 0:00:26.9]} 30... Ra5 {[%clk 0:00:04.5]} 31. Rexc6+ {[%clk 0:00:26.5]} 31... Kb5 {[%clk 0:00:03.8]} 32. R1c5+ {[%clk 0:00:24.1]} 32... Ka4 {[%clk 0:00:02.5]} 33. Rxa5+ {[%clk 0:00:23.8]} 33... Kxa5 {[%clk 0:00:01.7]} 34. Rxa6+ {[%clk 0:00:22.8]} 34... Kxa6 {[%clk 0:00:00.8]} 35. Nxh6 {[%clk 0:00:22.4]} 35... Kb6 {[%clk 0:00:00.4]} 36. Ng4 {[%clk 0:00:21.9]} 36... a5 {[%clk 0:00:00.1]} 37. h4 {[%clk 0:00:21.4]} 1-0

[Event "Live Chess"]
[Site "Chess.com"]
[Date "2010.12.15"]
[Round "-"]
[White "thinkaboutitplz"]
[Black "hipposcottimus"]
[Result "1-0"]
[CurrentPosition "r1bq1rk1/pp1nb1p1/4p1B1/3pp2Q/3P4/2N1P1P1/PP3PP1/R3K2R b KQ -"]
[Timezone "UTC"]
[ECO "D10"]
[ECOUrl "https://www.chess.com/openings/Slav-Defense-3.Nc3"]
[UTCDate "2010.12.15"]
[UTCTime "06:56:36"]
[WhiteElo "1598"]
[BlackElo "1625"]
[TimeControl "60"]
[Termination "thinkaboutitplz won on time"]
[StartTime "06:56:36"]
[EndDate "2010.12.15"]
[EndTime "06:57:27"]
[Link "https://www.chess.com/game/live/77459748"]

1. d4 {[%clk 0:01:00]} 1... d5 {[%clk 0:01:00]} 2. c4 {[%clk 0:00:59]} 2... c6 {[%clk 0:00:59.4]} 3. Nc3 {[%clk 0:00:58.3]} 3... Nd7 {[%clk 0:00:59.1]} 4. cxd5 {[%clk 0:00:57.5]} 4... cxd5 {[%clk 0:00:57.5]} 5. Nf3 {[%clk 0:00:56.9]} 5... e6 {[%clk 0:00:56.9]} 6. Bf4 {[%clk 0:00:55.2]} 6... Ngf6 {[%clk 0:00:55.8]} 7. e3 {[%clk 0:00:52.8]} 7... Nh5 {[%clk 0:00:54.8]} 8. Be5 {[%clk 0:00:49.9]} 8... f6 {[%clk 0:00:53.6]} 9. Bg3 {[%clk 0:00:48.2]} 9... Nxg3 {[%clk 0:00:52.4]} 10. hxg3 {[%clk 0:00:47.5]} 10... Be7 {[%clk 0:00:52]} 11. Bd3 {[%clk 0:00:46.7]} 11... O-O {[%clk 0:00:50.9]} 12. Bxh7+ {[%clk 0:00:44.5]} 12... Kf7 {[%clk 0:00:42.9]} 13. Bg6+ {[%clk 0:00:42.8]} 13... Kg8 {[%clk 0:00:40.3]} 14. Ne5 {[%clk 0:00:41.7]} 14... fxe5 {[%clk 0:00:36.5]} 15. Qh5 {[%clk 0:00:39.9]} 1-0

[Event "Live Chess"]
[Site "Chess.com"]
[Date "2010.12.15"]
[Round "-"]
[White "hipposcottimus"]
[Black "teardrop2006"]
[Result "0-1"]
[CurrentPosition "r4rk1/p5pp/2pN2b1/8/5p2/1P2R1R1/P1P3PP/7K w - -"]
[Timezone "UTC"]
[ECO "C40"]
[ECOUrl "https://www.chess.com/openings/Kings-Pawn-Opening-Kings-Knight-Elephant-Gambit"]
[UTCDate "2010.12.15"]
[UTCTime "04:37:23"]
[WhiteElo "1437"]
[BlackElo "1508"]
[TimeControl "480"]
[Termination "teardrop2006 won by resignation"]
[StartTime "04:37:23"]
[EndDate "2010.12.15"]
[EndTime "04:47:03"]
[Link "https://www.chess.com/game/live/77433273"]

1. e4 {[%clk 0:08:00]} 1... e5 {[%clk 0:08:00]} 2. Nf3 {[%clk 0:07:59.2]} 2... d5 {[%clk 0:07:57.8]} 3. d3 {[%clk 0:07:39.5]} 3... dxe4 {[%clk 0:07:54.3]} 4. Ng5 {[%clk 0:07:37]} 4... exd3 {[%clk 0:07:48.7]} 5. Bxd3 {[%clk 0:07:36.1]} 5... Be7 {[%clk 0:07:37.7]} 6. Ne4 {[%clk 0:07:31.3]} 6... Nf6 {[%clk 0:07:31.4]} 7. O-O {[%clk 0:07:28.3]} 7... Nc6 {[%clk 0:07:23.3]} 8. Nbc3 {[%clk 0:07:25.3]} 8... Be6 {[%clk 0:07:13.4]} 9. f4 {[%clk 0:06:36.3]} 9... exf4 {[%clk 0:07:03.1]} 10. Bxf4 {[%clk 0:06:29.8]} 10... Qd4+ {[%clk 0:06:58.4]} 11. Kh1 {[%clk 0:06:25]} 11... Ng4 {[%clk 0:06:46.8]} 12. Bg3 {[%clk 0:06:03.3]} 12... Ne3 {[%clk 0:06:43.4]} 13. Nb5 {[%clk 0:05:58.6]} 13... Qb6 {[%clk 0:06:12.5]} 14. Bxc7 {[%clk 0:05:42.5]} 14... Qxb5 {[%clk 0:05:53.7]} 15. Bxb5 {[%clk 0:05:37.8]} 15... Nxd1 {[%clk 0:05:51.2]} 16. Raxd1 {[%clk 0:05:34.7]} 16... O-O {[%clk 0:05:48.7]} 17. Bxc6 {[%clk 0:05:25.3]} 17... bxc6 {[%clk 0:05:45.4]} 18. b3 {[%clk 0:05:24.7]} 18... Bd5 {[%clk 0:05:42.2]} 19. Nc3 {[%clk 0:05:09.7]} 19... Be6 {[%clk 0:05:31.3]} 20. Rf3 {[%clk 0:04:52.4]} 20... Bf6 {[%clk 0:05:27.3]} 21. Rdd3 {[%clk 0:04:32.3]} 21... Bg4 {[%clk 0:05:09.6]} 22. Rg3 {[%clk 0:04:31.2]} 22... Bh5 {[%clk 0:05:06.2]} 23. Ne4 {[%clk 0:04:26]} 23... Be7 {[%clk 0:04:47.8]} 24. Be5 {[%clk 0:04:15.4]} 24... Bg6 {[%clk 0:04:42.1]} 25. Rde3 {[%clk 0:03:24.1]} 25... f5 {[%clk 0:04:31.3]} 26. Bd6 {[%clk 0:02:24.2]} 26... Bxd6 {[%clk 0:04:20.7]} 27. Nxd6 {[%clk 0:02:16.5]} 27... f4 {[%clk 0:04:17.1]} 0-1

[Event "Live Chess"]
[Site "Chess.com"]
[Date "2010.12.15"]
[Round "-"]
[White "permana"]
[Black "hipposcottimus"]
[Result "1-0"]
[CurrentPosition "r1b2rk1/pp3ppp/1bnq1n2/8/2BP1p2/P4N2/1PP1N1PP/R1BQ1RK1 w - -"]
[Timezone "UTC"]
[ECO "C36"]
[ECOUrl "https://www.chess.com/openings/Kings-Gambit-Accepted-Modern-Defense-4.exd5"]
[UTCDate "2010.12.15"]
[UTCTime "02:31:34"]
[WhiteElo "1545"]
[BlackElo "1437"]
[TimeControl "600"]
[Termination "permana won by resignation"]
[StartTime "02:31:34"]
[EndDate "2010.12.15"]
[EndTime "02:34:34"]
[Link "https://www.chess.com/game/live/77406617"]

1. e4 {[%clk 0:10:00]} 1... e5 {[%clk 0:10:00]} 2. f4 {[%clk 0:09:58.3]} 2... d5 {[%clk 0:09:56.5]} 3. exd5 {[%clk 0:09:49.6]} 3... exf4 {[%clk 0:09:47.8]} 4. Nf3 {[%clk 0:09:47.7]} 4... Nf6 {[%clk 0:09:43.9]} 5. Nc3 {[%clk 0:09:45.2]} 5... Bb4 {[%clk 0:09:40.5]} 6. Bc4 {[%clk 0:09:38.8]} 6... O-O {[%clk 0:08:58.3]} 7. O-O {[%clk 0:09:34.9]} 7... c6 {[%clk 0:08:52.8]} 8. dxc6 {[%clk 0:09:28.1]} 8... Nxc6 {[%clk 0:08:48.5]} 9. a3 {[%clk 0:09:25.8]} 9... Bc5+ {[%clk 0:08:38.3]} 10. d4 {[%clk 0:09:17.2]} 10... Bb6 {[%clk 0:08:28]} 11. Ne2 {[%clk 0:09:06.1]} 11... Qd6 {[%clk 0:08:00]} 1-0